[Event "Live Chess"]
[Site "Chess.com"]
[Date "2023.05.20"]
[Round "-"]
[White "viktorskliarov"]
[Black "djw60"]
[Result "1-0"]
[WhiteElo "2652"]
[BlackElo "2109"]
[TimeControl "300"]
[EndTime "12:39:57 PDT"]
[Termination "viktorskliarov won by resignation"]

1. e4 {[%clk 0:04:54.4]} 1... e6 {[%clk 0:04:57.1]} 2. d4 {[%clk 0:04:51.4]}
2... d5 {[%clk 0:04:55.7]} 3. e5 {[%clk 0:04:49.6]} 3... c5 {[%clk 0:04:54.1]}
4. c3 {[%clk 0:04:48.8]} 4... Nh6 {[%clk 0:04:52.9]} 5. Bxh6 {[%clk 0:04:40.2]}
5... gxh6 {[%clk 0:04:51.3]} 6. Nf3 {[%clk 0:04:39.4]} 6... Nc6 {[%clk
0:04:49.3]} 7. a3 {[%clk 0:04:34.5]} 7... Qb6 {[%clk 0:04:45.3]} 8. b4 {[%clk
0:04:22.7]} 8... cxd4 {[%clk 0:04:43.7]} 9. cxd4 {[%clk 0:04:20.8]} 9... Bg7
{[%clk 0:04:42.6]} 10. Nc3 {[%clk 0:04:07.7]} 10... O-O {[%clk 0:04:31.7]} 11.
Bd3 {[%clk 0:03:54.9]} 11... f6 {[%clk 0:04:29.8]} 12. b5 {[%clk 0:03:52.1]}
12... fxe5 {[%clk 0:04:18.4]} 13. bxc6 {[%clk 0:03:47.2]} 13... e4 {[%clk
0:04:16.9]} 14. Nxe4 {[%clk 0:03:44.3]} 14... dxe4 {[%clk 0:04:14.2]} 15. Bxe4
{[%clk 0:03:43.4]} 15... bxc6 {[%clk 0:04:07.3]} 16. O-O {[%clk 0:03:41.7]}
16... Ba6 {[%clk 0:04:01]} 17. Re1 {[%clk 0:03:38.7]} 17... Bc4 {[%clk
0:03:58.3]} 18. Qc2 {[%clk 0:03:28.6]} 18... Bd5 {[%clk 0:03:56.9]} 19. Bxh7+
{[%clk 0:03:27.4]} 19... Kh8 {[%clk 0:03:55.4]} 20. Be4 {[%clk 0:03:26.5]} 20...
Rxf3 {[%clk 0:03:30.5]} 21. Bxd5 {[%clk 0:02:49.5]} 21... cxd5 {[%clk
0:03:23.8]} 22. gxf3 {[%clk 0:02:44.4]} 22... Bxd4 {[%clk 0:03:20.5]} 23. Rab1
{[%clk 0:02:18.1]} 23... Rg8+ {[%clk 0:03:18.3]} 24. Kh1 {[%clk 0:02:16.3]}
24... Qd6 {[%clk 0:03:12.6]} 25. Rg1 {[%clk 0:02:09.6]} 25... Bg7 {[%clk
0:02:36.6]} 26. Rb7 {[%clk 0:01:55.3]} 26... Qxa3 {[%clk 0:02:30.2]} 27. Rg3
{[%clk 0:01:38.6]} 27... Qa6 {[%clk 0:01:55.8]} 28. Rb1 {[%clk 0:01:23.9]} 28...
d4 {[%clk 0:01:49.7]} 29. Qg6 {[%clk 0:01:13.9]} 29... Qe2 {[%clk 0:01:24.8]}
30. Kg2 {[%clk 0:01:09]} 30... d3 {[%clk 0:01:23.1]} 31. Rb8 {[%clk 0:01:05.7]}
31... Qe5 {[%clk 0:01:08.5]} 32. Rxg8+ {[%clk 0:01:02.5]} 32... Kxg8 {[%clk
0:01:08.4]} 33. Qxd3 {[%clk 0:01:01.7]} 33... a5 {[%clk 0:01:04.7]} 34. Qd8+
{[%clk 0:00:54.8]} 34... Kh7 {[%clk 0:01:01.8]} 35. Qa8 {[%clk 0:00:53.4]} 35...
h5 {[%clk 0:00:55]} 36. Qe4+ {[%clk 0:00:47.4]} 36... Qxe4 {[%clk 0:00:53.5]}
37. fxe4 {[%clk 0:00:47.3]} 37... Bf8 {[%clk 0:00:42.4]} 38. Rg5 {[%clk
0:00:45.9]} 38... a4 {[%clk 0:00:37]} 39. Rxh5+ {[%clk 0:00:44.9]} 39... Kg6
{[%clk 0:00:36.3]} 40. Ra5 {[%clk 0:00:44.6]} 40... a3 {[%clk 0:00:35.6]} 41. f4
{[%clk 0:00:42.5]} 1-0

[Event "Live Chess"]
[Site "Chess.com"]
[Date "2023.05.20"]
[Round "-"]
[White "raminguy"]
[Black "DerbyKnight"]
[Result "1-0"]
[WhiteElo "1976"]
[BlackElo "1622"]
[TimeControl "300"]
[EndTime "12:40:04 PDT"]
[Termination "raminguy won on time"]

1. d4 {[%clk 0:04:58.9]} 1... d5 {[%clk 0:04:58.4]} 2. Nc3 {[%clk 0:04:57.9]}
2... Nf6 {[%clk 0:04:54.6]} 3. Bf4 {[%clk 0:04:57.4]} 3... c5 {[%clk 0:04:51.2]}
4. e4 {[%clk 0:04:56.1]} 4... Nxe4 {[%clk 0:04:47.5]} 5. Nb5 {[%clk 0:04:54.6]}
5... Na6 {[%clk 0:04:40.5]} 6. dxc5 {[%clk 0:04:52.5]} 6... Nexc5 {[%clk
0:04:26]} 7. a4 {[%clk 0:04:43.8]} 7... Bd7 {[%clk 0:04:16.4]} 8. Nf3 {[%clk
0:04:39.2]} 8... f6 {[%clk 0:03:55.9]} 9. Qxd5 {[%clk 0:04:34.2]} 9... e5 {[%clk
0:03:51.4]} 10. Bc4 {[%clk 0:04:04.2]} 10... Qe7 {[%clk 0:03:33.6]} 11. Bg3
{[%clk 0:03:46]} 11... Bc6 {[%clk 0:03:30.1]} 12. Nd6+ {[%clk 0:03:15.7]} 12...
Kd7 {[%clk 0:03:11.2]} 13. Qf7 {[%clk 0:02:49.8]} 13... Nb4 {[%clk 0:02:17]} 14.
O-O-O {[%clk 0:02:45.3]} 14... Kc7 {[%clk 0:02:07]} 15. Qxe7+ {[%clk 0:02:28.8]}
15... Bxe7 {[%clk 0:02:04.9]} 16. Nb5+ {[%clk 0:02:24.1]} 16... Bxb5 {[%clk
0:01:59.1]} 17. axb5 {[%clk 0:02:18.2]} 17... a6 {[%clk 0:01:54.9]} 18. c3
{[%clk 0:02:13.3]} 18... axb5 {[%clk 0:01:53]} 19. cxb4 {[%clk 0:02:12]} 19...
Ra1+ {[%clk 0:01:43.5]} 20. Kc2 {[%clk 0:02:10.5]} 20... Rxd1 {[%clk 0:01:28.1]}
21. Rxd1 {[%clk 0:02:08.1]} 21... Na4 {[%clk 0:01:19.3]} 22. Bxb5 {[%clk
0:02:04.3]} 22... Nb6 {[%clk 0:01:12.8]} 23. Kb3 {[%clk 0:01:47.2]} 23... Ra8
{[%clk 0:00:53.8]} 24. Ne1 {[%clk 0:01:26.8]} 24... Nc8 {[%clk 0:00:27.1]} 25.
f4 {[%clk 0:01:21.5]} 25... Nd6 {[%clk 0:00:25.1]} 26. Bf1 {[%clk 0:00:54.8]}
26... Nf5 {[%clk 0:00:11.4]} 27. fxe5 {[%clk 0:00:49.4]} 27... Nxg3 {[%clk
0:00:07.8]} 28. hxg3 {[%clk 0:00:44.7]} 28... fxe5 {[%clk 0:00:06.8]} 29. Nd3
{[%clk 0:00:39.2]} 29... Bf6 {[%clk 0:00:05.6]} 30. Nc5 {[%clk 0:00:36.1]} 30...
b6 {[%clk 0:00:02.5]} 31. Ne4 {[%clk 0:00:33.9]} 1-0

[Event "Live Chess"]
[Site "Chess.com"]
[Date "2023.05.20"]
[Round "-"]
[White "friarnator"]
[Black "Conradical12"]
[Result "1-0"]
[WhiteElo "2008"]
[BlackElo "1574"]
[TimeControl "300"]
[EndTime "12:40:06 PDT"]
[Termination "friarnator won by resignation"]

1. d4 {[%clk 0:04:57.5]} 1... d5 {[%clk 0:04:58.4]} 2. Nc3 {[%clk 0:04:54.7]}
2... Nf6 {[%clk 0:04:57.7]} 3. Bf4 {[%clk 0:04:52.9]} 3... c5 {[%clk 0:04:56.3]}
4. e3 {[%clk 0:04:50.5]} 4... Nc6 {[%clk 0:04:55.2]} 5. Nf3 {[%clk 0:04:47.4]}
5... Bf5 {[%clk 0:04:54.6]} 6. a3 {[%clk 0:04:42.9]} 6... Qb6 {[%clk 0:04:52.5]}
7. dxc5 {[%clk 0:04:37.7]} 7... Qxb2 {[%clk 0:04:50.6]} 8. Na4 {[%clk
0:04:31.8]} 8... Bxc2 {[%clk 0:04:27.6]} 9. Nxb2 {[%clk 0:04:28.8]} 9... Bxd1
{[%clk 0:04:26.7]} 10. Rxd1 {[%clk 0:04:27.7]} 10... e6 {[%clk 0:04:22.1]} 11.
Bb5 {[%clk 0:04:25]} 11... Bxc5 {[%clk 0:04:20.3]} 12. a4 {[%clk 0:04:18.7]}
12... O-O {[%clk 0:04:17.8]} 13. O-O {[%clk 0:04:16.2]} 13... Ne4 {[%clk
0:04:14.1]} 14. Nd3 {[%clk 0:04:10.1]} 14... f6 {[%clk 0:04:04.4]} 15. Nxc5
{[%clk 0:04:06.1]} 15... Nxc5 {[%clk 0:04:02.5]} 16. Bd6 {[%clk 0:04:05.5]}
16... a6 {[%clk 0:03:58.7]} 17. Bxc6 {[%clk 0:04:03.2]} 17... Rfd8 {[%clk
0:03:56.1]} 18. Bxc5 {[%clk 0:03:58.6]} 18... b6 {[%clk 0:03:55.4]} 1-0

[Event "Live Chess"]
[Site "Chess.com"]
[Date "2023.05.20"]
[Round "-"]
[White "BillythekidFellowes"]
[Black "MartinWalker4"]
[Result "1/2-1/2"]
[WhiteElo "2022"]
[BlackElo "2069"]
[TimeControl "300"]
[EndTime "12:40:19 PDT"]
[Termination "Game drawn by agreement"]

1. e4 {[%clk 0:04:45.6]} 1... e5 {[%clk 0:04:57.9]} 2. Nf3 {[%clk 0:04:39.8]}
2... Nc6 {[%clk 0:04:56.3]} 3. Bc4 {[%clk 0:04:38.4]} 3... Bc5 {[%clk
0:04:53.7]} 4. c3 {[%clk 0:04:37.2]} 4... Nf6 {[%clk 0:04:51.8]} 5. d3 {[%clk
0:04:36.1]} 5... O-O {[%clk 0:04:47.6]} 6. Bg5 {[%clk 0:04:35.4]} 6... Be7
{[%clk 0:04:43.3]} 7. Nbd2 {[%clk 0:04:32.2]} 7... h6 {[%clk 0:04:40.9]} 8. Bh4
{[%clk 0:04:31.4]} 8... d6 {[%clk 0:04:37.9]} 9. Nf1 {[%clk 0:04:27.4]} 9... Nh5
{[%clk 0:04:34.7]} 10. Bxe7 {[%clk 0:04:25.8]} 10... Qxe7 {[%clk 0:04:32.2]} 11.
Ne3 {[%clk 0:04:25.7]} 11... Nf6 {[%clk 0:04:09.1]} 12. Qc2 {[%clk 0:04:22.8]}
12... Be6 {[%clk 0:04:06.8]} 13. O-O-O {[%clk 0:04:03.1]} 13... Rfb8 {[%clk
0:03:51.3]} 14. a4 {[%clk 0:03:59.9]} 14... a6 {[%clk 0:03:46.8]} 15. Bxe6
{[%clk 0:03:52.2]} 15... fxe6 {[%clk 0:03:34.9]} 16. d4 {[%clk 0:03:45.1]} 16...
b5 {[%clk 0:03:26.5]} 17. d5 {[%clk 0:03:23.4]} 17... Na5 {[%clk 0:03:21.3]} 18.
b4 {[%clk 0:03:18.5]} 18... Nc4 {[%clk 0:03:19]} 19. Nxc4 {[%clk 0:03:17.2]}
19... bxc4 {[%clk 0:03:17.2]} 20. a5 {[%clk 0:03:12.6]} 20... exd5 {[%clk
0:03:05.9]} 21. exd5 {[%clk 0:03:12.5]} 21... Qf7 {[%clk 0:03:04.4]} 22. Qe2
{[%clk 0:03:05.4]} 22... Nxd5 {[%clk 0:02:51.9]} 23. Qxc4 {[%clk 0:02:58.9]}
23... Nf4 {[%clk 0:02:50.4]} 24. Qxf7+ {[%clk 0:02:52.4]} 24... Kxf7 {[%clk
0:02:48.7]} 25. g3 {[%clk 0:02:52.3]} 25... Ne6 {[%clk 0:02:47.1]} 26. Kc2
{[%clk 0:02:47.1]} 26... Ke7 {[%clk 0:02:45.3]} 27. Rhe1 {[%clk 0:02:34]} 27...
Rf8 {[%clk 0:02:43.4]} 28. Re3 {[%clk 0:02:33.4]} 28... Rf7 {[%clk 0:02:37.4]}
29. Rd2 {[%clk 0:02:02.3]} 29... Raf8 {[%clk 0:02:34.7]} 30. Nh4 {[%clk
0:02:01.2]} 30... Rf6 {[%clk 0:02:21.8]} 31. f4 {[%clk 0:01:59.4]} 31... exf4
{[%clk 0:02:06.9]} 32. gxf4 {[%clk 0:01:59.3]} 32... Kd7 {[%clk 0:02:00.6]} 33.
f5 {[%clk 0:01:54.9]} 33... Nf4 {[%clk 0:01:52.5]} 34. Rf3 {[%clk 0:01:37.5]}
34... g5 {[%clk 0:01:47.4]} 35. fxg6 {[%clk 0:01:31.8]} 35... Nxg6 {[%clk
0:01:45.7]} 36. Nxg6 {[%clk 0:01:24.8]} 36... Rxf3 {[%clk 0:01:42.4]} 37. Nxf8+
{[%clk 0:01:24.3]} 37... Rxf8 {[%clk 0:01:41.3]} 38. Rg2 {[%clk 0:01:23.7]}
38... Rf6 {[%clk 0:01:35.4]} 39. Kd3 {[%clk 0:01:22.6]} 39... Kc6 {[%clk
0:01:28.4]} 1/2-1/2

[Event "Live Chess"]
[Site "Chess.com"]
[Date "2023.05.20"]
[Round "-"]
[White "Ayush_prahlad_Gupta"]
[Black "EdvancedChess"]
[Result "0-1"]
[WhiteElo "1786"]
[BlackElo "1920"]
[TimeControl "300"]
[EndTime "12:40:34 PDT"]
[Termination "EdvancedChess won by resignation"]

1. e4 {[%clk 0:04:57.2]} 1... e5 {[%clk 0:04:59.4]} 2. Nc3 {[%clk 0:04:57]} 2...
Nc6 {[%clk 0:04:58.8]} 3. Bc4 {[%clk 0:04:56.9]} 3... Nf6 {[%clk 0:04:58.4]} 4.
d3 {[%clk 0:04:55.7]} 4... Bc5 {[%clk 0:04:55]} 5. Bg5 {[%clk 0:04:55.1]} 5...
O-O {[%clk 0:04:54.2]} 6. Nd5 {[%clk 0:04:52.5]} 6... Be7 {[%clk 0:04:53.4]} 7.
Nxe7+ {[%clk 0:04:46.2]} 7... Qxe7 {[%clk 0:04:53.3]} 8. h4 {[%clk 0:04:45]}
8... d6 {[%clk 0:04:52.1]} 9. h5 {[%clk 0:04:43.9]} 9... h6 {[%clk 0:04:50.2]}
10. Be3 {[%clk 0:04:40.9]} 10... Ng4 {[%clk 0:04:42.9]} 11. Qd2 {[%clk
0:04:38.2]} 11... Nxe3 {[%clk 0:04:37.4]} 12. fxe3 {[%clk 0:04:38.1]} 12... Qg5
{[%clk 0:04:30.2]} 13. Nf3 {[%clk 0:04:34.6]} 13... Qg3+ {[%clk 0:04:26.3]} 14.
Qf2 {[%clk 0:04:32.6]} 14... Qxf2+ {[%clk 0:04:25.5]} 15. Kxf2 {[%clk
0:04:32.5]} 15... Na5 {[%clk 0:04:24.7]} 16. Bb3 {[%clk 0:04:30.5]} 16... c6
{[%clk 0:04:23.1]} 17. Rag1 {[%clk 0:04:21.9]} 17... Nxb3 {[%clk 0:04:20.7]} 18.
axb3 {[%clk 0:04:19.6]} 18... f5 {[%clk 0:04:20.2]} 19. exf5 {[%clk 0:03:02.7]}
19... Rxf5 {[%clk 0:04:14.4]} 20. Ke2 {[%clk 0:03:00.9]} 20... Be6 {[%clk
0:04:12.7]} 21. g4 {[%clk 0:02:55.2]} 21... Rf7 {[%clk 0:04:05.9]} 22. g5 {[%clk
0:02:52]} 22... Raf8 {[%clk 0:04:04.4]} 23. g6 {[%clk 0:02:41]} 23... Rxf3
{[%clk 0:04:03.1]} 0-1

[Event "Live Chess"]
[Site "Chess.com"]
[Date "2023.05.20"]
[Round "-"]
[White "Salpingidis"]
[Black "smoggyrabbit"]
[Result "1-0"]
[WhiteElo "2285"]
[BlackElo "1661"]
[TimeControl "300"]
[EndTime "12:40:40 PDT"]
[Termination "Salpingidis won on time"]

1. d4 {[%clk 0:04:55.6]} 1... e6 {[%clk 0:04:58.9]} 2. c4 {[%clk 0:04:54.6]}
2... f5 {[%clk 0:04:57.5]} 3. Nc3 {[%clk 0:04:53.5]} 3... Nf6 {[%clk 0:04:56.1]}
4. Qc2 {[%clk 0:04:49.8]} 4... d5 {[%clk 0:04:43.7]} 5. cxd5 {[%clk 0:04:44.1]}
5... exd5 {[%clk 0:04:41.9]} 6. Bg5 {[%clk 0:04:43.3]} 6... c6 {[%clk
0:04:39.5]} 7. e3 {[%clk 0:04:42.1]} 7... Be7 {[%clk 0:04:37]} 8. Bd3 {[%clk
0:04:40.7]} 8... g6 {[%clk 0:04:32.4]} 9. Bh6 {[%clk 0:04:38.6]} 9... Nbd7
{[%clk 0:04:10]} 10. Nge2 {[%clk 0:04:35]} 10... Ng4 {[%clk 0:04:08.3]} 11. Bg7
{[%clk 0:04:33.2]} 11... Rg8 {[%clk 0:04:06.9]} 12. Be5 {[%clk 0:04:26.9]} 12...
Ngxe5 {[%clk 0:04:02.4]} 13. dxe5 {[%clk 0:04:26.8]} 13... Nxe5 {[%clk
0:04:01.2]} 14. O-O {[%clk 0:04:26.5]} 14... Bd6 {[%clk 0:03:44.5]} 15. Nf4
{[%clk 0:04:22.4]} 15... Qh4 {[%clk 0:03:27.1]} 16. g3 {[%clk 0:04:13]} 16...
Qh6 {[%clk 0:03:07.9]} 17. Be2 {[%clk 0:04:11.1]} 17... g5 {[%clk 0:02:55.2]}
18. Nfxd5 {[%clk 0:04:02.2]} 18... g4 {[%clk 0:02:37.3]} 19. Nf4 {[%clk
0:03:54]} 19... Nf3+ {[%clk 0:02:31.9]} 20. Bxf3 {[%clk 0:03:43.4]} 20... gxf3
{[%clk 0:02:30.7]} 21. Qb3 {[%clk 0:03:26.3]} 21... Rg7 {[%clk 0:01:41.5]} 22.
Rad1 {[%clk 0:03:16.5]} 22... Bxf4 {[%clk 0:00:50.9]} 23. exf4 {[%clk
0:03:16.4]} 23... Be6 {[%clk 0:00:19.2]} 24. Rfe1 {[%clk 0:02:59.3]} 24... Re7
{[%clk 0:00:17.7]} 25. Rxe6 {[%clk 0:02:37]} 25... Rxe6 {[%clk 0:00:16.8]} 26.
Qc4 {[%clk 0:02:16.1]} 26... Re2 {[%clk 0:00:13.2]} 27. Nxe2 {[%clk 0:02:02.7]}
27... Qh3 {[%clk 0:00:12]} 28. Qe6+ {[%clk 0:01:59]} 28... Kf8 {[%clk
0:00:10.4]} 29. Qf6+ {[%clk 0:01:48.6]} 29... Kg8 {[%clk 0:00:09.7]} 30. Qg5+
{[%clk 0:01:27.1]} 30... Kf8 {[%clk 0:00:08.1]} 31. Rd8+ {[%clk 0:01:21.3]}
31... Rxd8 {[%clk 0:00:06.7]} 32. Qxd8+ {[%clk 0:01:21.2]} 32... Kf7 {[%clk
0:00:06.1]} 33. Qd7+ {[%clk 0:01:14.4]} 33... Kg6 {[%clk 0:00:05]} 34. Qe8+
{[%clk 0:01:08.1]} 34... Kf6 {[%clk 0:00:03.9]} 35. Qh8+ {[%clk 0:01:02]} 35...
Ke6 {[%clk 0:00:03.2]} 36. Nd4+ {[%clk 0:01:00.3]} 36... Kd6 {[%clk 0:00:02.1]}
37. Nxf3 {[%clk 0:00:59.2]} 37... Qg4 {[%clk 0:00:00.7]} 38. Qe5+ {[%clk
0:00:57.4]} 1-0

[Event "Live Chess"]
[Site "Chess.com"]
[Date "2023.05.20"]
[Round "-"]
[White "SiDebanks"]
[Black "Jo1ts"]
[Result "1-0"]
[WhiteElo "1385"]
[BlackElo "741"]
[TimeControl "300"]
[EndTime "12:40:51 PDT"]
[Termination "SiDebanks won by checkmate"]

1. d4 {[%clk 0:04:56.5]} 1... d5 {[%clk 0:04:56.5]} 2. Nc3 {[%clk 0:04:56.4]}
2... Nc6 {[%clk 0:04:51.6]} 3. Bf4 {[%clk 0:04:55.5]} 3... Nf6 {[%clk
0:04:50.2]} 4. Nb5 {[%clk 0:04:54.4]} 4... Rb8 {[%clk 0:04:33.4]} 5. Bxc7 {[%clk
0:04:46]} 5... Qd7 {[%clk 0:04:22.6]} 6. Bxb8 {[%clk 0:04:42.6]} 6... Nxb8
{[%clk 0:04:22.5]} 7. e3 {[%clk 0:04:40.1]} 7... a6 {[%clk 0:04:19.2]} 8. Nc3
{[%clk 0:04:36.9]} 8... e6 {[%clk 0:04:07.9]} 9. Bd3 {[%clk 0:04:29.9]} 9... Qd6
{[%clk 0:03:59.5]} 10. Nf3 {[%clk 0:04:22.9]} 10... Nc6 {[%clk 0:03:57.5]} 11.
O-O {[%clk 0:04:10]} 11... Be7 {[%clk 0:03:56.6]} 12. h3 {[%clk 0:04:07.8]}
12... O-O {[%clk 0:03:50.7]} 13. Qd2 {[%clk 0:03:42.2]} 13... e5 {[%clk
0:03:36.9]} 14. dxe5 {[%clk 0:03:39.4]} 14... Nxe5 {[%clk 0:03:36.8]} 15. Nxe5
{[%clk 0:03:35.9]} 15... Qxe5 {[%clk 0:03:36.7]} 16. Rfe1 {[%clk 0:03:14.5]}
16... Bd6 {[%clk 0:03:33.9]} 17. f4 {[%clk 0:02:42.8]} 17... Qe6 {[%clk
0:03:25.8]} 18. Be2 {[%clk 0:02:37.3]} 18... Ne4 {[%clk 0:03:22.9]} 19. Nxe4
{[%clk 0:02:34.7]} 19... dxe4 {[%clk 0:03:16.7]} 20. Bg4 {[%clk 0:02:32.5]}
20... Qg6 {[%clk 0:03:04.8]} 21. Bxc8 {[%clk 0:02:28.1]} 21... Rxc8 {[%clk
0:03:04.7]} 22. Rad1 {[%clk 0:02:23.1]} 22... Be7 {[%clk 0:03:00.5]} 23. Qd7
{[%clk 0:02:14.2]} 23... Rxc2 {[%clk 0:02:42.9]} 24. Rd2 {[%clk 0:01:37.9]}
24... Rxd2 {[%clk 0:02:27.9]} 25. Qxd2 {[%clk 0:01:37.8]} 25... h6 {[%clk
0:02:24.9]} 26. Rc1 {[%clk 0:01:35.1]} 26... Qd6 {[%clk 0:02:12.1]} 27. Rc8+
{[%clk 0:01:26.1]} 27... Kh7 {[%clk 0:02:07.3]} 28. Qxd6 {[%clk 0:01:22.3]}
28... Bxd6 {[%clk 0:02:06]} 29. Rd8 {[%clk 0:01:20.6]} 29... Bc5 {[%clk
0:02:00.1]} 30. Kf2 {[%clk 0:01:18.7]} 30... f6 {[%clk 0:01:52.3]} 31. Rd7
{[%clk 0:01:15.9]} 31... Bb4 {[%clk 0:01:45.3]} 32. Rxb7 {[%clk 0:01:09.1]}
32... a5 {[%clk 0:01:43]} 33. a3 {[%clk 0:01:07.5]} 33... Bd2 {[%clk 0:01:40.6]}
34. Ke2 {[%clk 0:01:03.8]} 34... Bc1 {[%clk 0:01:39.2]} 35. b4 {[%clk
0:01:02.6]} 35... Bxa3 {[%clk 0:01:24.6]} 36. bxa5 {[%clk 0:01:00.1]} 36... Bc5
{[%clk 0:01:21.2]} 37. a6 {[%clk 0:00:58.3]} 37... Kg6 {[%clk 0:01:16.4]} 38. a7
{[%clk 0:00:56.4]} 38... Bxa7 {[%clk 0:01:14.4]} 39. Rxa7 {[%clk 0:00:56.3]}
39... Kf5 {[%clk 0:01:12.5]} 40. g4+ {[%clk 0:00:55.2]} 40... Kg6 {[%clk
0:01:10.2]} 41. Kd2 {[%clk 0:00:53.9]} 41... f5 {[%clk 0:01:09]} 42. Kc3 {[%clk
0:00:51]} 42... fxg4 {[%clk 0:01:05.8]} 43. hxg4 {[%clk 0:00:50.9]} 43... Kf6
{[%clk 0:01:01.9]} 44. Ra6+ {[%clk 0:00:47.6]} 44... Kf7 {[%clk 0:00:58.2]} 45.
Kd4 {[%clk 0:00:47]} 45... g5 {[%clk 0:00:56.9]} 46. Kxe4 {[%clk 0:00:46.9]}
46... gxf4 {[%clk 0:00:54.1]} 47. exf4 {[%clk 0:00:46.8]} 47... Kg7 {[%clk
0:00:52.5]} 48. f5 {[%clk 0:00:44.2]} 48... Kf7 {[%clk 0:00:51.1]} 49. Rxh6
{[%clk 0:00:42.5]} 49... Kg7 {[%clk 0:00:49.5]} 50. Ra6 {[%clk 0:00:41.4]} 50...
Kf7 {[%clk 0:00:48.7]} 51. Ke5 {[%clk 0:00:41.3]} 51... Kg7 {[%clk 0:00:47.5]}
52. g5 {[%clk 0:00:40.1]} 52... Kh7 {[%clk 0:00:46.3]} 53. Rg6 {[%clk 0:00:35]}
53... Kh8 {[%clk 0:00:44.7]} 54. f6 {[%clk 0:00:31.4]} 54... Kh7 {[%clk
0:00:43.8]} 55. Kf5 {[%clk 0:00:31]} 55... Kh8 {[%clk 0:00:42.3]} 56. f7 {[%clk
0:00:29.2]} 56... Kh7 {[%clk 0:00:40.4]} 57. Kf6 {[%clk 0:00:23.7]} 57... Kh8
{[%clk 0:00:38]} 58. f8=Q+ {[%clk 0:00:23.2]} 58... Kh7 {[%clk 0:00:37.9]} 59.
Qg7# {[%clk 0:00:22.2]} 1-0

[Event "Live Chess"]
[Site "Chess.com"]
[Date "2023.05.20"]
[Round "-"]
[White "OleksiyJr1"]
[Black "MrDodgy"]
[Result "0-1"]
[WhiteElo "942"]
[BlackElo "2286"]
[TimeControl "300"]
[EndTime "12:40:55 PDT"]
[Termination "MrDodgy won by checkmate"]

1. e4 {[%clk 0:04:58]} 1... c6 {[%clk 0:04:59.2]} 2. Nf3 {[%clk 0:04:50.6]} 2...
g6 {[%clk 0:04:58.4]} 3. e5 {[%clk 0:04:50.5]} 3... Bg7 {[%clk 0:04:57.4]} 4.
Nc3 {[%clk 0:04:48.7]} 4... d6 {[%clk 0:04:56.8]} 5. exd6 {[%clk 0:04:46.6]}
5... exd6 {[%clk 0:04:56]} 6. d4 {[%clk 0:04:45.7]} 6... Ne7 {[%clk 0:04:55.5]}
7. Bg5 {[%clk 0:04:45]} 7... h6 {[%clk 0:04:53.8]} 8. Bxe7 {[%clk 0:04:43.8]}
8... Qxe7+ {[%clk 0:04:52.9]} 9. Be2 {[%clk 0:04:42.5]} 9... O-O {[%clk
0:04:51.6]} 10. O-O {[%clk 0:04:41.4]} 10... Nd7 {[%clk 0:04:49.4]} 11. Re1
{[%clk 0:04:40.8]} 11... Nf6 {[%clk 0:04:47.3]} 12. Bd3 {[%clk 0:04:32.9]} 12...
Qc7 {[%clk 0:04:37.3]} 13. Ne4 {[%clk 0:04:27.1]} 13... Nxe4 {[%clk 0:04:31.3]}
14. Rxe4 {[%clk 0:04:24.4]} 14... Bf5 {[%clk 0:04:28.8]} 15. Re3 {[%clk
0:04:22.1]} 15... Bg4 {[%clk 0:04:26.3]} 16. h3 {[%clk 0:04:20.3]} 16... Be6
{[%clk 0:04:24.6]} 17. b3 {[%clk 0:04:14.4]} 17... c5 {[%clk 0:04:18.7]} 18.
dxc5 {[%clk 0:04:12.7]} 18... Bxa1 {[%clk 0:04:12.3]} 19. cxd6 {[%clk
0:04:08.3]} 19... Qc3 {[%clk 0:04:04.4]} 20. Bxg6 {[%clk 0:03:57.1]} 20... Qg7
{[%clk 0:04:00.3]} 21. Be4 {[%clk 0:03:47.9]} 21... Rad8 {[%clk 0:03:43.6]} 22.
Bxb7 {[%clk 0:03:39.1]} 22... Bf6 {[%clk 0:03:36.1]} 23. Rd3 {[%clk 0:03:22.7]}
23... Bf5 {[%clk 0:03:31.7]} 24. Rd5 {[%clk 0:03:19.4]} 24... Bg6 {[%clk
0:03:27.6]} 25. d7 {[%clk 0:03:16.6]} 25... Be4 {[%clk 0:03:15.2]} 26. Rd6
{[%clk 0:02:55]} 26... Bxb7 {[%clk 0:03:12.3]} 27. Nd4 {[%clk 0:02:40.5]} 27...
Qxg2# {[%clk 0:03:06.4]} 0-1

[Event "Live Chess"]
[Site "Chess.com"]
[Date "2023.05.20"]
[Round "-"]
[White "Andysav3"]
[Black "amazinggoalkeeper"]
[Result "1-0"]
[WhiteElo "1698"]
[BlackElo "499"]
[TimeControl "300"]
[EndTime "12:40:57 PDT"]
[Termination "Andysav3 won by resignation"]

1. e4 {[%clk 0:04:58.9]} 1... e5 {[%clk 0:04:58.8]} 2. Nf3 {[%clk 0:04:57.5]}
2... Nc6 {[%clk 0:04:55.4]} 3. d4 {[%clk 0:04:55.3]} 3... Nxd4 {[%clk
0:04:53.1]} 4. Nxd4 {[%clk 0:04:47.7]} 4... exd4 {[%clk 0:04:51]} 5. Qxd4 {[%clk
0:04:43.1]} 5... Qf6 {[%clk 0:04:46.6]} 6. e5 {[%clk 0:04:32.9]} 6... Qe6 {[%clk
0:04:41.4]} 7. Bc4 {[%clk 0:04:23.9]} 7... Qe7 {[%clk 0:04:38.2]} 8. O-O {[%clk
0:04:13.8]} 8... f6 {[%clk 0:04:34.2]} 9. Re1 {[%clk 0:04:07.5]} 9... fxe5
{[%clk 0:04:32.6]} 10. Rxe5 {[%clk 0:04:03.9]} 10... Qe6 {[%clk 0:04:25.7]} 1-0

[Event "Live Chess"]
[Site "Chess.com"]
[Date "2023.05.20"]
[Round "-"]
[White "AdamOwls"]
[Black "JohanKjeldahl"]
[Result "1/2-1/2"]
[WhiteElo "1954"]
[BlackElo "1796"]
[TimeControl "300"]
[EndTime "12:41:05 PDT"]
[Termination "Game drawn by agreement"]

1. e4 {[%clk 0:04:58.2]} 1... c5 {[%clk 0:04:58.3]} 2. d4 {[%clk 0:04:56.3]}
2... cxd4 {[%clk 0:04:56.5]} 3. c3 {[%clk 0:04:56]} 3... dxc3 {[%clk 0:04:54.5]}
4. Nxc3 {[%clk 0:04:55.9]} 4... e6 {[%clk 0:04:53.7]} 5. Nf3 {[%clk 0:04:54.9]}
5... Nc6 {[%clk 0:04:52.6]} 6. Bc4 {[%clk 0:04:54.4]} 6... a6 {[%clk 0:04:49.6]}
7. O-O {[%clk 0:04:53.2]} 7... b5 {[%clk 0:04:48.7]} 8. Bb3 {[%clk 0:04:51.8]}
8... Bb7 {[%clk 0:04:48.2]} 9. Qe2 {[%clk 0:04:50.8]} 9... Qc7 {[%clk
0:04:44.3]} 10. Rd1 {[%clk 0:04:49.7]} 10... Be7 {[%clk 0:04:40]} 11. Be3 {[%clk
0:04:48]} 11... Nf6 {[%clk 0:04:35.8]} 12. h3 {[%clk 0:04:46.6]} 12... O-O
{[%clk 0:04:33.4]} 13. Rac1 {[%clk 0:04:45.6]} 13... Rad8 {[%clk 0:04:29.8]} 14.
Nd5 {[%clk 0:04:18.9]} 14... exd5 {[%clk 0:04:25.4]} 15. exd5 {[%clk 0:04:17.7]}
15... Nxd5 {[%clk 0:04:16.2]} 16. Bxd5 {[%clk 0:04:11.4]} 16... Bf6 {[%clk
0:04:14.7]} 17. Nd4 {[%clk 0:03:53]} 17... Rfe8 {[%clk 0:04:06.9]} 18. Qf3
{[%clk 0:03:25.3]} 18... Nxd4 {[%clk 0:03:42.8]} 19. Bxd4 {[%clk 0:03:16.9]}
19... Bxd5 {[%clk 0:03:40.4]} 20. Qxd5 {[%clk 0:03:10.1]} 20... Qf4 {[%clk
0:03:37.1]} 21. Bxf6 {[%clk 0:03:02.5]} 21... Qxf6 {[%clk 0:03:34.8]} 22. Rc7
{[%clk 0:03:00.1]} 22... Qe6 {[%clk 0:03:15.2]} 23. Qd4 {[%clk 0:02:40.4]} 23...
d5 {[%clk 0:03:10.2]} 24. Rc5 {[%clk 0:02:31.3]} 24... Kf8 {[%clk 0:02:57.9]}
25. Rxd5 {[%clk 0:02:12.9]} 25... Rxd5 {[%clk 0:02:52.2]} 26. Qxd5 {[%clk
0:02:11.9]} 26... Qxd5 {[%clk 0:02:50.6]} 27. Rxd5 {[%clk 0:02:11.6]} 27... Re2
{[%clk 0:02:49.1]} 28. Rd6 {[%clk 0:02:08.3]} 28... Rxb2 {[%clk 0:02:45.9]} 29.
Rxa6 {[%clk 0:02:06.4]} 29... b4 {[%clk 0:02:40.7]} 1/2-1/2